bitfinex/quotes_ETHUSD_20250916
["timestamp","ask_amount","ask_price","bid_price","bid_amount"]
[1758047320328,3.731,4487.2,4487.1,1.2308]
[1758047320996,5.95956124,4487.2,4487.1,1.2318]
[1758047321621,5.95956124,4487.2,4487.1,0.011]
[1758047321927,5.95956124,4487.2,4487.1,1.2318]
[1758047322128,5.95956124,4487.2,4487.1,0.3087]
[1758047322367,6.166928,4487.2,4487.1,0.3087]
[1758047323022,5.95956124,4487.2,4487.1,1.2318]
[1758047323347,3.732,4487.2,4487.1,1.35498]
[1758047325247,5.96056124,4487.2,4487.1,0.3087]
[1758047325551,3.94044226,4487.5,4487.1,1.2318]
[1758047325752,3.732,4487.4,4487.2,0.9231]
[1758047326075,2.22851157,4487.3,4487.1,0.011]
[1758047326230,3.732,4487.2,4487.1,0.011]
[1758047326629,3.732,4487.2,4487.1,0.3087]
[1758047327151,5.96056124,4487.2,4487.1,1.2318]
[1758047328020,5.96056124,4487.2,4487.1,0.011]
[1758047328565,5.96056124,4487.2,4487.1,1.2318]
[1758047329354,3.732,4487.2,4487.1,1.2318]
[1758047329559,3.732,4487.2,4487.1,1.86067169]
[1758047329980,3.73,4487.2,4487.1,1.86067169]
[1758047330474,3.73,4487.2,4487.1,1.2318]
[1758047331394,5.95856124,4487.2,4487.1,0.7761]
[1758047331565,5.95856124,4487.2,4487.1,0.3087]
[1758047331764,5.95856124,4487.2,4487.1,1.2318]
[1758047332473,5.95856124,4487.2,4487.1,0.3087]
[1758047332668,6.16631297,4487.2,4487.1,0.011]
[1758047332874,6.16631297,4487.2,4487.1,0.3087]
[1758047333069,3.73,4487.2,4487.1,1.2541]
[1758047333270,5.95856124,4487.2,4487.1,1.2541]
[1758047334500,3.73,4487.2,4487.1,1.2541]
[1758047334701,5.95856124,4487.2,4487.1,1.2541]
[1758047334996,3.73,4487.2,4487.1,1.2541]
[1758047335389,5.95856124,4487.2,4487.1,1.2541]
[1758047335564,3.73,4487.2,4487.1,1.2541]
[1758047335966,3.8392,4487.4,4487.1,1.2541]
[1758047336288,3.8392,4487.4,4487.2,0.98458561]
[1758047336289,0.1112,4487.4,4487.2,0.98458561]
[1758047336487,0.1112,4487.4,4487.3,1.249]
[1758047336889,2.33966191,4487.4,4487.3,0.2867]
[1758047337101,2.33966191,4487.4,4487.3,1.249]
[1758047338019,2.33966191,4487.4,4487.3,0.2867]
[1758047338226,2.22856124,4487.2,4487.1,0.011]
[1758047338787,5.95856124,4487.2,4487.1,0.2977]
[1758047339027,3.73,4487.2,4487.1,0.7724]
[1758047339688,5.95856124,4487.2,4487.1,1.26]
[1758047340027,3.73,4487.2,4487.1,1.26]
[1758047340929,5.95856124,4487.2,4487.1,1.26]
[1758047341303,3.73,4487.2,4487.1,1.26]
[1758047341920,0.1112,4487.4,4487.1,1.26]
[1758047341921,0.1112,4487.4,4487.1,1.60887472]
[1758047342127,0.1112,4487.4,4487.2,0.98458561]
[1758047342595,0.1112,4487.4,4487.3,0.2867]
[1758047342788,0.1112,4487.4,4487.1,0.011]
[1758047343095,2.22851157,4487.3,4487.1,0.011]
[1758047343486,2.22856124,4487.2,4487.1,0.011]
[1758047343892,2.32756124,4487.2,4487.1,0.011]
[1758047344092,2.43641163,4487.2,4487.1,0.011]
[1758047344825,0.20785039,4487.2,4487.1,0.2977]
[1758047345220,2.43641163,4487.2,4487.1,0.2977]
[1758047345419,2.22856124,4487.2,4487.1,0.2977]
[1758047345621,5.95752559,4487.3,4487.1,0.2977]
[1758047346116,3.729,4487.3,4487.1,1.26]
[1758047346335,3.729,4487.3,4487.2,0.9623]
[1758047346554,3.93686373,4487.3,4487.2,1.249]
[1758047347356,3.93692024,4487.3,4487.2,1.249]
[1758047348341,0.20792024,4487.3,4487.2,1.249]
[1758047348546,3.729,4487.9,4487.2,1.39728561]
[1758047348728,0.1112,4487.6,4487.3,0.9623]
[1758047348933,0.1112,4487.6,4487.4,0.02228461]
[1758047349151,0.1112,4487.6,4487.5,1.249]
[1758047349863,3.729,4487.9,4487.5,1.249]
[1758047350072,0.20811466,4487.8,4487.6,0.98458362]
[1758047350246,0.20811466,4487.8,4487.7,0.2867]
[1758047350420,3.729,4487.9,4487.7,1.249]
[1758047350755,0.1112,4488.0,4487.8,0.02228263]
[1758047351055,0.1112,4488.0,4487.9,1.249]
[1758047351247,0.3192812,4488.0,4487.9,0.2867]
[1758047351448,0.3192812,4488.0,4487.8,0.02228263]
[1758047351623,0.3192812,4488.0,4487.9,0.7614]
[1758047351823,0.3192812,4488.0,4487.9,1.249]
[1758047352559,0.3192812,4488.0,4487.9,0.2867]
[1758047352725,0.3192812,4488.0,4487.9,1.249]
[1758047352925,0.1112,4488.0,4487.9,1.249]
[1758047353752,0.1112,4488.0,4487.9,0.7614]
[1758047353953,2.54744519,4488.0,4487.9,0.2867]
[1758047354124,2.33936399,4488.0,4487.7,2.4]
[1758047354326,0.1112,4488.0,4487.9,0.2867]
[1758047354646,0.1112,4488.0,4487.9,1.249]
[1758047355326,0.1112,4488.0,4487.9,1.78981398]
[1758047356250,0.20797704,4488.4,4487.9,4.01802762]
[1758047356429,0.3191238,4488.5,4488.0,0.98458163]
[1758047356755,0.1112,4488.5,4488.4,0.2867]
[1758047356951,0.1112,4488.5,4488.4,1.249]
[1758047358152,0.002,4488.6,4488.4,1.249]
[1758047358460,0.002,4488.6,4488.5,0.98457915]
[1758047358828,0.002,4488.6,4488.5,1.27127915]
[1758047359161,0.002,4488.6,4488.5,2.21182474]
[1758047359363,0.002,4488.6,4488.5,2.32302474]
[1758047359658,0.002,4488.6,4488.5,4.55094052]
[1758047359954,0.002,4488.6,4488.5,2.32302474]
[1758047360831,0.002,4488.6,4488.3,2.4]
[1758047361161,0.099,4488.4,4488.2,3.728]
[1758047361472,0.5679,4488.4,4487.9,5.44]
[1758047361640,0.5679,4488.4,4488.0,2.4]
[1758047361842,0.1112,4488.5,4488.3,0.2867]
[1758047362833,0.1112,4488.5,4488.3,1.249]
[1758047363051,0.1112,4488.5,4488.4,0.02227965]
[1758047363278,0.1112,4488.5,4488.4,0.30897965]
[1758047363478,0.1112,4488.5,4488.4,1.27127965]
[1758047363966,0.002,4488.6,4488.4,1.27127965]
[1758047364264,0.002,4488.6,4488.5,0.9623]
[1758047364766,0.002,4488.6,4488.5,1.261]
[1758047364969,0.002,4488.6,4488.5,1.28327915]
[1758047365335,0.002,4488.6,4488.5,1.261]
[1758047366196,2.22986614,4488.6,4488.5,0.2987]
[1758047366366,3.24267605,4488.6,4488.3,6.128]
[1758047366534,2.22796542,4488.4,4488.3,6.128]
[1758047366867,2.22803077,4488.3,4488.0,3.728]
[1758047367059,0.4567,4488.4,4488.1,0.02228114]
[1758047367264,2.22796899,4488.4,4488.1,0.02228114]
[1758047367653,2.22806917,4488.2,4488.0,3.728]
[1758047367854,2.22802903,4488.3,4488.0,3.728]
[1758047368341,0.4567,4488.4,4488.0,3.728]
[1758047368559,2.22799789,4488.4,4488.0,3.728]
[1758047368959,2.3391227,4488.5,4488.1,0.4721]
[1758047369295,2.3391227,4488.5,4488.2,0.02228064]
[1758047369670,0.1112,4488.5,4488.2,0.02228064]
[1758047370042,0.1112,4488.5,4488.4,0.2987]
[1758047370572,0.002,4488.6,4488.4,1.248]
[1758047370777,0.002,4488.6,4488.5,0.4721]
[1758047370973,0.002,4488.6,4488.5,0.9493]
[1758047371143,0.002,4488.6,4488.5,1.248]
[1758047371986,0.002,4488.6,4488.5,4.975]
[1758047372307,0.002,4488.6,4488.5,10.9254501]
[1758047374587,0.002,4488.6,4488.5,13.3254501]
[1758047379814,0.002,4488.6,4488.5,11.20873432]
[1758047379965,0.002,4488.6,4488.5,13.4366501]
[1758047380477,0.002,4488.6,4488.5,8.7603501]
[1758047380681,0.002,4488.6,4488.5,12.4863501]
[1758047381264,0.002,4488.6,4488.5,12.9584501]
[1758047381511,0.002,4488.6,4488.5,9.7096501]
[1758047381664,0.002,4488.6,4488.5,12.9584501]
[1758047382066,0.002,4488.6,4488.5,8.7603501]
[1758047382265,0.002,4488.6,4488.5,10.14623432]
[1758047382467,0.002,4488.6,4488.5,12.3741501]
[1758047382699,0.002,4488.6,4488.5,13.3234501]
[1758047385376,0.002,4488.6,4488.5,12.3741501]
[1758047385617,0.002,4488.6,4488.5,13.3234501]
[1758047386442,0.002,4488.6,4488.5,9.84753432]
[1758047386736,0.002,4488.6,4488.5,12.0754501]
[1758047386897,0.002,4488.6,4488.5,12.3741501]
[1758047387722,0.002,4488.6,4488.5,12.3731501]
[1758047388025,0.002,4488.6,4488.5,13.3224501]
[1758047389503,0.002,4488.6,4488.5,13.41169587]
[1758047390628,0.002,4488.6,4488.5,18.15143687]
[1758047391829,0.002,4488.6,4488.5,8.55152109]
[1758047392004,0.101,4488.6,4488.5,11.55198677]
[1758047392326,0.5577,4488.6,4488.5,11.462741]
[1758047393330,0.002,4488.6,4488.5,11.462741]
[1758047393532,0.002,4488.6,4488.5,11.770041]
[1758047394296,0.002,4488.6,4488.5,11.462741]
[1758047394533,0.101,4488.6,4488.5,11.462741]
[1758047394734,0.002,4488.6,4488.5,11.462741]
[1758047394910,0.002,4488.6,4488.5,13.98255678]
[1758047395835,0.002,4488.6,4488.5,14.89735678]
[1758047398343,0.002,4488.6,4488.5,17.29735678]
[1758047401461,0.002,4488.6,4488.5,15.069441]
[1758047401667,0.101,4488.6,4488.5,13.862741]
[1758047401828,0.555,4488.6,4488.5,11.459741]
[1758047402261,0.002,4488.6,4488.5,11.459741]
[1758047402428,0.002,4488.6,4488.5,13.68765678]
[1758047402629,0.002,4488.6,4488.5,13.97955678]
[1758047402834,0.002,4488.6,4488.5,11.459741]
[1758047403050,0.002,4488.6,4488.5,13.68765678]
[1758047403244,0.002,4488.6,4488.5,13.97955678]
[1758047403575,0.002,4488.6,4488.5,13.68765678]
[1758047404245,0.002,4488.6,4488.5,13.97955678]
[1758047406031,0.101,4488.6,4488.5,4.739741]
[1758047406231,0.101,4488.6,4488.5,8.459741]
[1758047406232,2.96916614,4488.6,4488.5,8.459741]
[1758047406452,3.69696323,4488.6,4488.5,8.459741]
[1758047406657,3.90487308,4488.6,4488.5,8.459741]
[1758047407027,1.49070694,4488.6,4488.5,8.459741]
[1758047407262,0.555,4488.6,4488.5,8.459741]
[1758047407672,0.76290199,4488.6,4488.5,8.459741]
[1758047408573,0.002,4488.6,4488.5,8.459741]
[1758047408732,0.1019,4488.6,4488.5,8.459741]
[1758047410457,2.78376614,4488.6,4488.5,8.459741]
[1758047410660,2.78376614,4488.6,4488.5,4.739741]
[1758047410884,2.96916614,4488.6,4488.5,8.460741]
[1758047411176,0.1019,4488.6,4488.5,8.460741]
[1758047412078,0.5559,4488.6,4488.5,8.460741]
[1758047412650,2.78376614,4488.6,4488.5,8.460741]
[1758047412850,2.96916614,4488.6,4488.5,4.739741]
[1758047413185,2.96916614,4488.6,4488.5,8.462741]
[1758047414483,0.5559,4488.6,4488.5,8.462741]
[1758047414687,2.78376614,4488.6,4488.5,8.462741]
[1758047415481,2.32976614,4488.6,4488.5,8.462741]
[1758047415993,2.96916614,4488.6,4488.5,8.462741]
[1758047417461,2.78376614,4488.6,4488.5,8.462741]
[1758047418694,3.51131659,4488.6,4488.5,4.739741]
[1758047418854,3.90437122,4488.6,4488.5,8.461741]
[1758047419058,3.90437122,4488.6,4488.5,4.739741]
[1758047419495,3.16507122,4488.6,4488.5,4.739741]
[1758047419872,3.26407122,4488.6,4488.5,4.739741]
[1758047420094,3.71807122,4488.6,4488.5,4.739741]
[1758047421158,1.03620508,4488.6,4488.5,4.739741]
[1758047421360,0.002,4488.6,4488.5,9.216041]
[1758047421589,0.002,4488.6,4488.5,9.669441]
[1758047423363,0.002,4488.6,4488.5,11.89735678]
[1758047423559,0.002,4488.6,4488.5,13.81560371]
[1758047425192,0.002,4488.6,4488.5,11.58768793]
[1758047425706,0.002,4488.6,4488.5,8.754641]
[1758047426021,0.002,4488.6,4488.5,9.671541]
[1758047427014,3.41546313,4488.6,4488.5,4.739741]
[1758047427231,2.64476313,4488.6,4488.5,5.046241]
[1758047427393,2.22986614,4488.6,4488.5,5.046241]
[1758047427781,2.22986614,4488.6,4488.5,4.739741]
[1758047428522,2.81426614,4488.6,4488.5,4.739741]
[1758047429583,3.02169481,4488.6,4488.5,4.739741]
[1758047429784,3.56547304,4488.6,4488.5,4.739741]
[1758047430723,3.77287839,4488.6,4488.5,4.739741]
[1758047430881,3.95917839,4488.6,4488.5,4.739741]
[1758047431220,7.49787839,4488.6,4488.5,4.739741]
[1758047431798,7.68417839,4488.6,4488.5,4.739741]
[1758047431986,8.16197469,4488.6,4488.5,4.739741]
[1758047432626,2.2280647,4488.2,4488.1,0.001]
[1758047432789,6.89270478,4488.2,4488.1,0.001]
[1758047433118,13.69825317,4488.2,4488.1,0.001]
[1758047433686,14.49025317,4488.2,4488.1,0.001]
[1758047435909,5.70820108,4488.2,4488.1,0.001]
[1758047436216,8.77100478,4488.2,4488.1,0.001]
[1758047436405,9.24780108,4488.2,4488.1,0.001]
[1758047436607,9.43320108,4488.2,4488.1,0.001]
[1758047438289,9.43246472,4488.2,4488.1,0.001]
[1758047438488,9.24706472,4488.2,4488.1,0.001]
[1758047438723,3.66770478,4488.2,4488.1,0.3075]
[1758047438897,6.86789872,4488.2,4488.1,1.2244]
[1758047439114,6.66049337,4488.2,4488.1,1.2244]
[1758047439344,6.66149337,4488.2,4488.1,1.2244]
[1758047439548,4.43342867,4488.2,4488.1,1.2244]
[1758047439847,6.66149337,4488.2,4488.1,1.2244]
[1758047440046,6.66149337,4488.2,4488.1,0.001]
[1758047440233,13.58522324,4488.2,4488.1,0.001]
[1758047440409,14.37722324,4488.2,4488.1,0.001]
[1758047440607,14.8541987,4488.2,4488.1,0.001]
[1758047441008,17.8541987,4488.2,4488.1,0.001]
[1758047443357,12.6644987,4488.2,4488.1,0.001]
[1758047443559,11.23444661,4488.2,4488.1,0.001]
[1758047443966,10.75747115,4488.2,4488.1,0.001]
[1758047444860,11.34277115,4488.2,4488.1,0.001]
[1758047445154,11.33402035,4488.2,4488.1,0.001]
[1758047445316,11.81942035,4488.2,4488.1,0.001]
[1758047445649,11.81941291,4488.2,4488.1,0.001]
[1758047445854,12.79663357,4488.2,4488.1,0.001]
[1758047446217,12.61123357,4488.2,4488.1,0.001]
[1758047446529,12.79663357,4488.2,4488.1,0.001]
[1758047448565,12.61223357,4488.2,4488.1,0.001]
[1758047448721,12.79763357,4488.2,4488.1,0.001]
[1758047449119,8.39983357,4488.2,4488.1,0.001]
[1758047449456,12.31023357,4488.2,4488.1,0.001]
[1758047449823,12.79563357,4488.2,4488.1,0.001]
[1758047450151,12.79843357,4488.2,4488.1,0.001]
[1758047450749,12.79563357,4488.2,4488.1,0.001]
[1758047451063,12.79843357,4488.2,4488.1,0.001]
[1758047451618,12.79563357,4488.2,4488.1,0.001]
[1758047451821,8.58423357,4488.2,4488.1,0.001]
[1758047452170,12.02993357,4488.2,4488.1,0.001]
[1758047452520,8.29993357,4488.2,4488.1,0.001]
[1758047452866,12.02893357,4488.2,4488.1,0.001]
[1758047453071,12.02893357,4488.2,4488.1,0.3075]
[1758047454220,8.29993357,4488.2,4488.1,0.3075]
[1758047454418,12.02893357,4488.2,4488.1,0.3075]
[1758047454923,8.29993357,4488.2,4488.1,0.3075]
[1758047455156,12.02893357,4488.2,4488.1,1.2381]
[1758047455341,12.02893357,4488.2,4488.1,0.3075]
[1758047455541,12.02893357,4488.2,4488.1,0.001]
[1758047455723,12.60303357,4488.2,4488.1,0.001]
[1758047455923,12.78933357,4488.2,4488.1,0.001]
[1758047456454,12.60303357,4488.2,4488.1,0.001]
[1758047457034,12.78933357,4488.2,4488.1,0.001]
[1758047457235,12.60303357,4488.2,4488.1,0.001]
[1758047459484,12.02893357,4488.2,4488.1,0.3]
[1758047459783,12.02793357,4488.2,4488.1,0.753]
[1758047460068,12.02793357,4488.2,4488.1,1.2306]
[1758047460360,10.3469871,4488.2,4488.1,1.2306]
[1758047460557,10.34870147,4488.2,4488.1,1.2306]
[1758047460925,10.34948001,4488.2,4488.1,1.2306]
[1758047461579,10.34948001,4488.2,4488.1,0.753]
[1758047461743,10.34948001,4488.2,4488.1,0.3]
[1758047461942,11.60722514,4488.2,4488.1,0.3]
[1758047462338,12.49822514,4488.2,4488.1,0.001]
[1758047462568,12.97332514,4488.2,4488.1,0.001]
[1758047462943,12.55826596,4488.2,4488.1,0.001]
[1758047463459,11.98416596,4488.2,4488.1,0.001]
[1758047463657,12.19184334,4488.2,4488.1,0.001]
[1758047463843,12.29084334,4488.2,4488.1,0.001]
[1758047464065,12.76589836,4488.2,4488.1,0.001]
[1758047464864,12.97349078,4488.2,4488.1,0.001]
[1758047465067,12.74456596,4488.2,4488.1,0.001]
[1758047465300,12.55826596,4488.2,4488.1,0.001]
[1758047466154,12.7658557,4488.2,4488.1,0.001]
[1758047466461,2.22856124,4487.2,4487.1,0.9406]
[1758047466663,2.22856124,4487.2,4487.1,1.2396]
[1758047466664,6.37171463,4487.2,4487.1,1.2396]
[1758047466879,6.85007076,4487.2,4487.1,1.2396]
[1758047468313,6.85007076,4487.2,4487.1,0.7866]
[1758047468805,6.85007076,4487.2,4487.1,1.2396]
[1758047469227,5.6881266,4487.2,4487.1,1.2396]
[1758047469367,5.6881266,4487.2,4487.1,1.36356]
[1758047469573,5.89615542,4487.2,4487.1,1.2396]
[1758047470332,5.89615542,4487.2,4487.1,0.7866]
[1758047471101,5.89615542,4487.2,4487.1,0.309]
[1758047471610,5.89615542,4487.2,4487.1,1.2396]
[1758047472610,2.43659006,4487.2,4487.1,1.2396]
[1758047472779,3.93602882,4487.2,4487.1,1.36356]
[1758047473112,6.16459006,4487.2,4487.1,1.36356]
[1758047474626,3.93602882,4487.2,4487.1,1.36356]
[1758047474932,6.16459006,4487.2,4487.1,1.2396]
[1758047475094,5.95656124,4487.2,4487.1,1.2396]
[1758047475299,1.713,4487.4,4487.1,1.2396]
[1758047475590,0.1112,4487.4,4487.2,0.95288561]
[1758047475799,0.1112,4487.4,4487.3,1.2296]
[1758047476001,0.1112,4487.4,4487.3,2.18605642]
[1758047477132,0.1112,4487.4,4487.3,1.2296]
[1758047477637,0.1112,4487.4,4487.3,7.30367431]
[1758047477801,3.8392,4488.0,4487.3,9.5321823]
[1758047477997,0.1112,4488.0,4487.7,6.07407431]
[1758047478321,0.1112,4488.4,4487.9,0.299]
[1758047478516,0.1112,4488.4,4488.0,0.95288163]
[1758047478729,0.1112,4488.4,4488.3,0.299]
[1758047479229,0.002,4488.5,4488.3,1.2296]
[1758047479395,0.002,4488.5,4488.3,1.36590806]
[1758047479592,0.002,4488.5,4488.4,0.9306]
[1758047480098,2.22991578,4488.5,4488.4,1.2296]
[1758047480494,2.22805933,4488.3,4488.0,0.1112]
[1758047480722,2.22805933,4488.3,4488.1,0.9306]
[1758047480938,2.34111882,4488.5,4488.2,1.2296]
[1758047481150,0.1132,4488.5,4488.3,0.95288015]
[1758047481345,0.002,4488.5,4488.4,1.2296]
[1758047481525,0.002,4488.5,4488.4,1.37016809]
[1758047483146,2.22991578,4488.5,4488.4,1.37016809]
[1758047483305,2.22991578,4488.5,4488.4,1.2296]
[1758047484558,0.002,4488.5,4488.4,1.2296]
[1758047485121,0.002,4488.5,4488.4,1.25187965]
[1758047488266,0.002,4488.5,4488.4,3.47984507]
[1758047488425,0.002,4488.5,4488.4,5.05724135]
[1758047488626,0.002,4488.5,4488.4,8.1461617]
[1758047490953,0.002,4488.5,4488.4,4.98759628]
[1758047491168,0.002,4488.5,4488.4,5.91909628]
[1758047491449,0.002,4488.5,4488.4,4.6083]
[1758047492135,0.002,4488.5,4488.4,4.1372]
[1758047493137,2.22991578,4488.5,4488.4,0.299]
[1758047493338,2.54541578,4488.5,4488.1,4.1864]
[1758047493758,0.3175,4488.5,4488.1,4.6575]
[1758047494049,0.002,4488.5,4488.4,0.2858]
[1758047495555,0.002,4488.5,4488.4,0.30807965]
[1758047495718,0.002,4488.5,4488.4,0.02227965]
[1758047496353,2.22992012,4488.5,4488.2,0.4711]
[1758047496656,2.22797327,4488.4,4488.1,4.48643699]
[1758047496816,2.22797327,4488.4,4488.2,3.725]
[1758047497313,0.002,4488.5,4488.2,3.725]
[1758047497513,0.002,4488.5,4488.3,0.2858]
[1758047497740,0.002,4488.5,4488.3,0.7569]
[1758047498050,0.002,4488.5,4488.4,0.4711]
[1758047498427,0.002,4488.5,4488.4,0.7569]
[1758047498616,0.002,4488.5,4488.4,1.23957965]
[1758047498821,0.002,4488.5,4488.4,1.958848]
[1758047499654,0.002,4488.5,4488.4,7.18681342]
[1758047499833,0.002,4488.5,4488.4,7.27573377]
[1758047501883,2.54531578,4488.5,4488.2,3.725]
[1758047502888,0.3174,4488.5,4488.2,3.725]
[1758047503933,2.54534174,4488.5,4488.2,3.725]
[1758047504654,2.22797981,4488.4,4488.2,3.725]
[1758047505461,0.002,4488.5,4488.2,3.725]
[1758047505661,2.22995934,4488.5,4488.2,3.725]
[1758047505848,2.22799207,4488.4,4488.2,3.725]
[1758047506051,0.002,4488.5,4488.2,3.725]
[1758047506432,0.002,4488.5,4488.3,3.725]
[1758047507069,0.3155,4488.4,4488.0,0.4711]
[1758047507288,0.9054,4488.3,4487.2,0.4711]
[1758047507487,0.1112,4488.1,4487.6,3.0]
[1758047507949,2.22816399,4488.0,4487.6,3.0]
[1758047508345,2.33932716,4488.1,4487.6,3.0]
[1758047508870,2.22816589,4488.0,4487.6,3.4711]
[1758047509074,0.5746,4488.1,4487.6,3.0]
[1758047509270,0.5746,4488.1,4487.7,0.876761]
[1758047509271,0.1112,4488.1,4487.7,0.876761]
[1758047509441,0.1112,4488.1,4487.7,1.347861]
[1758047509642,2.33933803,4488.1,4487.7,1.347861]
[1758047510041,0.1112,4488.1,4487.7,1.347861]
[1758047511671,0.1112,4488.1,4487.7,0.876761]
[1758047512045,2.33931732,4488.1,4487.7,0.876761]
[1758047512246,0.1112,4488.1,4487.7,0.876761]
[1758047512857,0.1112,4488.1,4487.7,5.071861]
[1758047514704,0.1112,4488.1,4488.0,0.3018]
[1758047515290,0.1112,4488.1,4488.0,0.757]
[1758047516173,0.1112,4488.1,4487.8,0.93774794]
[1758047516378,0.1112,4488.1,4487.8,1.39294794]
[1758047516773,2.52611364,4487.9,4487.8,0.93774794]
[1758047516989,0.2979,4487.9,4487.7,0.876761]
[1758047517168,0.2979,4487.9,4487.6,3.723]
[1758047517369,0.1112,4487.8,4487.6,3.723]
[1758047518407,0.1112,4487.8,4487.7,0.02228312]
[1758047518610,0.1112,4487.8,4487.7,0.32408312]
[1758047519887,0.1112,4487.8,4487.7,0.77928312]
[1758047520210,0.1112,4487.8,4487.7,0.32408312]
[1758047520429,0.1112,4487.8,4487.7,0.02228312]
[1758047520717,3.56489795,4487.8,4487.6,3.723]
[1758047521077,1.3366,4487.8,4487.6,3.723]
[1758047521278,0.1112,4487.8,4487.7,0.77928312]
[1758047521594,0.1112,4488.2,4487.7,3.46549606]
[1758047521777,0.1112,4488.2,4487.8,0.9131]
[1758047522099,0.1112,4488.2,4487.9,3.724]
[1758047522262,2.22812936,4488.1,4487.8,3.724]
[1758047522459,0.2979,4487.9,4487.8,3.724]
[1758047522903,0.1112,4488.2,4487.8,4.0258]
[1758047523198,2.33930384,4488.2,4487.8,4.0258]
[1758047523512,2.22813064,4488.1,4487.8,4.0258]
[1758047523668,2.82777982,4488.2,4487.8,3.724]
[1758047523864,2.2281397,4488.1,4487.8,3.724]
[1758047524377,2.82777727,4488.2,4487.8,3.724]
[1758047524579,2.2281325,4488.1,4487.8,3.724]
[1758047524801,2.82776988,4488.2,4487.8,3.724]
[1758047524965,0.2979,4487.9,4487.8,3.724]
[1758047525584,2.2281829,4488.0,4487.8,3.724]
[1758047525902,2.82778492,4488.2,4487.8,3.724]
[1758047526208,3.26678492,4488.2,4487.8,3.724]
[1758047526504,2.22819973,4488.0,4487.8,3.724]
[1758047526819,2.22817634,4488.0,4487.8,3.724]
[1758047527123,2.52611364,4487.9,4487.8,3.724]
[1758047527263,2.52611364,4487.9,4487.4,1.8242]
[1758047527264,2.33947367,4487.8,4487.4,5.436]
[1758047527468,0.2979,4487.5,4487.4,3.723]
[1758047527668,0.8976,4487.5,4487.2,3.723]
[1758047527869,0.8976,4487.5,4486.9,0.1112]
[1758047528174,0.1112,4487.3,4486.9,3.723]
[1758047528369,2.22856124,4487.2,4486.9,3.723]
[1758047528575,2.52646124,4487.2,4486.9,3.723]
[1758047529012,2.52646124,4487.2,4486.7,0.001]
[1758047529306,3.45396124,4487.2,4486.7,0.001]
[1758047530305,4.40562852,4487.2,4486.7,0.001]
[1758047530496,4.61326278,4487.2,4486.7,0.001]
[1758047531870,4.61328918,4487.2,4486.7,0.001]
[1758047532512,3.68578918,4487.2,4486.7,0.001]
[1758047532674,2.4362219,4487.2,4486.7,0.4562]
[1758047532869,3.6616219,4487.2,4486.8,0.02228759]
[1758047533103,3.6616219,4487.2,4486.7,0.001]
[1758047533424,2.22856124,4487.2,4486.7,0.4562]
[1758047533625,2.52646124,4487.2,4486.8,0.02228759]
[1758047534029,3.01496124,4487.2,4486.8,0.02228759]
[1758047536246,3.01496124,4487.2,4486.7,0.4562]
[1758047537324,6.73796124,4487.2,4486.7,0.4562]
[1758047539920,8.1286265,4487.2,4486.7,0.001]
[1758047540543,8.33610353,4487.2,4486.7,0.001]
[1758047541160,8.54557478,4487.2,4486.7,0.001]
[1758047543221,7.61807478,4487.2,4486.7,0.001]
[1758047543422,2.73593827,4487.2,4486.7,0.9141]
[1758047543626,6.45793827,4487.2,4486.7,0.9141]
[1758047543826,6.94643827,4487.2,4486.7,0.001]
[1758047544060,7.38543827,4487.2,4486.7,0.001]
[1758047544252,6.94643827,4487.2,4486.7,0.001]
[1758047544566,7.38655123,4487.2,4486.7,0.4622]
[1758047544931,7.38655123,4487.2,4486.7,0.001]
[1758047545134,8.30145123,4487.2,4486.7,0.001]
[1758047546836,8.50892873,4487.2,4486.7,0.001]
[1758047547038,8.50893005,4487.2,4486.7,0.001]
[1758047547379,10.27892155,4487.2,4486.7,0.001]
[1758047547737,10.27921983,4487.2,4486.7,0.001]
[1758047548110,7.79613005,4487.2,4487.1,0.3023]
[1758047548261,7.79613005,4487.2,4487.1,0.011]
[1758047548459,8.09773005,4487.2,4487.1,0.011]
[1758047549319,8.09773005,4487.2,4486.7,0.001]
[1758047549320,3.02075991,4486.8,4486.7,0.001]
[1758047549587,8.87171576,4486.8,4486.7,0.001]
[1758047549800,6.39349784,4486.8,4486.7,0.001]
[1758047549957,14.11250449,4486.8,4486.7,0.001]
[1758047550157,14.11250449,4486.8,4484.1,0.01]
[1758047550158,2.23005218,4484.2,4484.1,0.01]
[1758047550464,3.0,4484.1,4482.4,0.9273]
[1758047550657,0.43725155,4484.0,4482.4,0.9273]
[1758047550853,2.2303291,4483.7,4482.8,1.0473]
[1758047551050,4.06687155,4483.9,4482.8,1.0473]
[1758047551051,2.2305496,4483.2,4482.8,1.0473]
[1758047551250,1.713,4483.8,4483.6,0.2913]
[1758047551486,1.713,4484.2,4483.7,0.9273]
[1758047551686,3.741,4484.1,4483.8,0.48350251]
[1758047551891,1.713,4484.3,4484.0,0.2913]
[1758047552100,3.741,4484.2,4484.0,0.7525]
[1758047552484,6.77480665,4484.3,4484.0,0.2913]
[1758047552485,4.241,4484.1,4484.0,0.2913]
[1758047553715,4.5426,4484.1,4483.4,0.4612]
[1758047553874,2.25244895,4484.0,4483.2,0.4661]
[1758047554078,5.97222751,4483.9,4483.2,0.4661]
[1758047554278,3.742,4483.9,4483.2,0.4661]
[1758047554493,2.23036489,4483.6,4483.1,0.01]
[1758047554704,4.1996,4483.9,4483.1,0.01]
[1758047554705,3.7642957,4483.5,4483.1,0.01]
[1758047554881,3.742,4483.4,4483.1,0.01]
[1758047555402,2.5388496,4483.2,4483.1,0.01]